[Event "Titled Tuesday Blitz July 13 2021"]
[White "Novikov, Evgenij"]
[Black "Pacheco Lugo, Alejandro Jose"]
[WhiteFideId "4125380"]
[BlackFideId "3903745"]
[WhiteElo "2242"]
[BlackElo "2125"]
[Result "1-0"]
[Round "07"]
[TimeControl "180+1"]
[Date "2021.07.13"]
[WhiteClock "0:01:28"]
[BlackClock "0:02:08"]

1. e4 {[%clk 0:03:00]}  c5 {[%clk 0:02:59]} 2. Nf3 {[%clk 0:03:00]}  d6 {[%clk 0:03:00]} 3. d4 {[%clk 0:02:59]}  cxd4 {[%clk 0:03:01]} 4. Nxd4 {[%clk 0:03:00]}  Nf6 {[%clk 0:03:01]} 5. Nc3 {[%clk 0:03:00]}  a6 {[%clk 0:03:02]} 6. Bg5 {[%clk 0:02:52]}  Nbd7 {[%clk 0:03:01]} 7. f4 {[%clk 0:02:51]}  Qc7 {[%clk 0:03:01]} 8. Qf3 {[%clk 0:02:46]}  h6 {[%clk 0:03:01]} 9. Bh4 {[%clk 0:02:45]}  g5 {[%clk 0:03:01]} 10. fxg5 {[%clk 0:02:16]}  hxg5 {[%clk 0:03:02]} 11. Bxg5 {[%clk 0:02:17]}  Qc5 {[%clk 0:03:00]} 12. Nf5 {[%clk 0:02:05]}  e6 {[%clk 0:02:38]} 13. Be3 {[%clk 0:02:04]}  Qb4 {[%clk 0:02:32]} 14. O-O-O {[%clk 0:02:03]}  exf5 {[%clk 0:02:28]} 15. Qxf5 {[%clk 0:01:50]}  Rh5 {[%clk 0:02:19]} 16. Qf3 {[%clk 0:01:42]}  Ne5 {[%clk 0:02:15]} 17. Qxf6 {[%clk 0:01:37]}  Be7 {[%clk 0:02:08]} 18. Qxe7+ {[%clk 0:01:28]} 1-0


[Site "https://www.chess.com"]

[Event "Titled Tuesday Blitz July 13 2021"]
[White "Onyshchuk, Volodymyr"]
[Black "Matinian, Nikita"]
[WhiteFideId "14114038"]
[BlackFideId "24129100"]
[WhiteElo "2603"]
[BlackElo "2410"]
[Result "0-1"]
[Round "07"]
[TimeControl "180+1"]
[Date "2021.07.13"]
[WhiteClock "0:00:08"]
[BlackClock "0:00:39"]

1. Nf3 {[%clk 0:03:00]}  Nf6 {[%clk 0:02:59]} 2. g3 {[%clk 0:03:01]}  g6 {[%clk 0:03:00]} 3. Bg2 {[%clk 0:03:02]}  Bg7 {[%clk 0:03:00]} 4. O-O {[%clk 0:03:02]}  O-O {[%clk 0:03:01]} 5. d3 {[%clk 0:03:03]}  d6 {[%clk 0:03:02]} 6. c4 {[%clk 0:03:03]}  e5 {[%clk 0:03:02]} 7. Nc3 {[%clk 0:03:03]}  Nc6 {[%clk 0:03:03]} 8. Rb1 {[%clk 0:03:03]}  a5 {[%clk 0:03:03]} 9. a3 {[%clk 0:03:02]}  Bf5 {[%clk 0:02:57]} 10. b4 {[%clk 0:02:50]}  axb4 {[%clk 0:02:58]} 11. axb4 {[%clk 0:02:50]}  Qd7 {[%clk 0:02:59]} 12. b5 {[%clk 0:02:48]}  Nd8 {[%clk 0:02:58]} 13. e4 {[%clk 0:02:27]}  Bh3 {[%clk 0:02:58]} 14. Qb3 {[%clk 0:02:23]}  Bxg2 {[%clk 0:02:53]} 15. Kxg2 {[%clk 0:02:22]}  Ne6 {[%clk 0:02:54]} 16. Be3 {[%clk 0:02:20]}  Ng4 {[%clk 0:02:52]} 17. Nd5 {[%clk 0:02:11]}  Kh8 {[%clk 0:02:44]} 18. Ra1 {[%clk 0:02:04]}  Rxa1 {[%clk 0:02:30]} 19. Rxa1 {[%clk 0:02:03]}  f5 {[%clk 0:02:31]} 20. Ra7 {[%clk 0:01:48]}  f4 {[%clk 0:02:20]} 21. Bc1 {[%clk 0:01:46]}  fxg3 {[%clk 0:02:20]} 22. fxg3 {[%clk 0:01:43]}  Rxf3 {[%clk 0:02:18]} 23. Ra8+ {[%clk 0:00:58]}  Rf8 {[%clk 0:02:12]} 24. Rxf8+ {[%clk 0:00:57]}  Bxf8 {[%clk 0:02:13]} 25. h3 {[%clk 0:00:50]}  Nh6 {[%clk 0:02:12]} 26. Qa4 {[%clk 0:00:46]}  Qc8 {[%clk 0:01:53]} 27. Qa7 {[%clk 0:00:36]}  Ng8 {[%clk 0:01:51]} 28. Be3 {[%clk 0:00:33]}  Ne7 {[%clk 0:01:45]} 29. b6 {[%clk 0:00:31]}  c6 {[%clk 0:01:35]} 30. Nb4 {[%clk 0:00:24]}  Nc5 {[%clk 0:01:22]} 31. Qa1 {[%clk 0:00:22]}  Kg8 {[%clk 0:01:16]} 32. g4 {[%clk 0:00:20]}  Ne6 {[%clk 0:01:11]} 33. Kf3 {[%clk 0:00:17]}  g5 {[%clk 0:01:11]} 34. Ke2 {[%clk 0:00:17]}  Ng6 {[%clk 0:01:11]} 35. Nc2 {[%clk 0:00:11]}  Ngf4+ {[%clk 0:01:11]} 36. Kd2 {[%clk 0:00:12]}  Nxh3 {[%clk 0:01:09]} 37. Qh1 {[%clk 0:00:11]}  Nhf4 {[%clk 0:01:08]} 38. Qa1 {[%clk 0:00:11]}  Be7 {[%clk 0:01:06]} 39. Bf2 {[%clk 0:00:11]}  Bd8 {[%clk 0:01:02]} 40. Qa7 {[%clk 0:00:10]}  Nc5 {[%clk 0:00:59]} 41. Bxc5 {[%clk 0:00:11]}  dxc5 {[%clk 0:00:59]} 42. Ne3 {[%clk 0:00:11]}  Qd7 {[%clk 0:00:58]} 43. Qa3 {[%clk 0:00:11]}  Bxb6 {[%clk 0:00:54]} 44. Nf5 {[%clk 0:00:11]}  Bd8 {[%clk 0:00:52]} 45. Kc2 {[%clk 0:00:11]}  b5 {[%clk 0:00:49]} 46. Qc3 {[%clk 0:00:10]}  bxc4 {[%clk 0:00:46]} 47. Qxc4+ {[%clk 0:00:10]}  Qe6 {[%clk 0:00:41]} 48. Qxc5 {[%clk 0:00:09]}  Qa2+ {[%clk 0:00:42]} 49. Kc3 {[%clk 0:00:08]}  Ba5+ {[%clk 0:00:39]} 0-1


[Site "https://www.chess.com"]

[Event "Titled Tuesday Blitz July 13 2021"]
[White "Ozates, Tuna"]
[Black "Nguyen, Quoc Hy"]
[WhiteFideId "6354521"]
[BlackFideId "12410853"]
[WhiteElo "1872"]
[BlackElo "1975"]
[Result "0-1"]
[Round "07"]
[TimeControl "180+1"]
[Date "2021.07.13"]
[WhiteClock "0:00:08"]
[BlackClock "0:00:08"]

1. e4 {[%clk 0:03:00]}  c5 {[%clk 0:02:57]} 2. Nf3 {[%clk 0:03:00]}  g6 {[%clk 0:02:56]} 3. d4 {[%clk 0:02:59]}  cxd4 {[%clk 0:02:55]} 4. Nxd4 {[%clk 0:02:56]}  Bg7 {[%clk 0:02:55]} 5. c4 {[%clk 0:02:56]}  Nc6 {[%clk 0:02:54]} 6. Be3 {[%clk 0:02:56]}  Nf6 {[%clk 0:02:52]} 7. Nc3 {[%clk 0:02:56]}  O-O {[%clk 0:02:52]} 8. Be2 {[%clk 0:02:56]}  d6 {[%clk 0:02:51]} 9. O-O {[%clk 0:02:56]}  Bd7 {[%clk 0:02:52]} 10. Qd2 {[%clk 0:02:57]}  Rc8 {[%clk 0:02:53]} 11. Rad1 {[%clk 0:02:49]}  a6 {[%clk 0:02:51]} 12. h3 {[%clk 0:02:44]}  Re8 {[%clk 0:02:30]} 13. f4 {[%clk 0:02:43]}  e5 {[%clk 0:02:19]} 14. Nxc6 {[%clk 0:02:41]}  Bxc6 {[%clk 0:02:20]} 15. fxe5 {[%clk 0:02:21]}  Rxe5 {[%clk 0:02:19]} 16. Bd4 {[%clk 0:02:10]}  Nxe4 {[%clk 0:02:13]} 17. Qf4 {[%clk 0:02:09]}  Rf5 {[%clk 0:02:11]} 18. Qe3 {[%clk 0:02:02]}  Nxc3 {[%clk 0:01:50]} 19. Qxc3 {[%clk 0:01:51]}  Qg5 {[%clk 0:01:42]} 20. g4 {[%clk 0:01:48]}  Rxf1+ {[%clk 0:01:32]} 21. Bxf1 {[%clk 0:01:49]}  Bxd4+ {[%clk 0:01:13]} 22. Qxd4 {[%clk 0:01:49]}  h5 {[%clk 0:01:04]} 23. Re1 {[%clk 0:01:29]}  Bf3 {[%clk 0:00:53]} 24. Qe3 {[%clk 0:01:03]}  Qxe3+ {[%clk 0:00:40]} 25. Rxe3 {[%clk 0:01:04]}  hxg4 {[%clk 0:00:41]} 26. hxg4 {[%clk 0:00:58]}  Bxg4 {[%clk 0:00:42]} 27. Re7 {[%clk 0:00:59]}  Be6 {[%clk 0:00:33]} 28. b3 {[%clk 0:00:55]}  b5 {[%clk 0:00:30]} 29. cxb5 {[%clk 0:00:54]}  axb5 {[%clk 0:00:30]} 30. Rb7 {[%clk 0:00:51]}  Rc1 {[%clk 0:00:21]} 31. Kf2 {[%clk 0:00:50]}  Rc2+ {[%clk 0:00:21]} 32. Ke3 {[%clk 0:00:51]}  Rxa2 {[%clk 0:00:21]} 33. Rxb5 {[%clk 0:00:42]}  Ra3 {[%clk 0:00:21]} 34. Rb8+ {[%clk 0:00:40]}  Kg7 {[%clk 0:00:21]} 35. Rd8 {[%clk 0:00:40]}  Rxb3+ {[%clk 0:00:21]} 36. Kd4 {[%clk 0:00:41]}  Rb4+ {[%clk 0:00:21]} 37. Kc3 {[%clk 0:00:41]}  Rb6 {[%clk 0:00:21]} 38. Bg2 {[%clk 0:00:37]}  d5 {[%clk 0:00:21]} 39. Kd4 {[%clk 0:00:37]}  Rb4+ {[%clk 0:00:21]} 40. Ke5 {[%clk 0:00:37]}  Rb2 {[%clk 0:00:20]} 41. Bh1 {[%clk 0:00:35]}  Re2+ {[%clk 0:00:20]} 42. Kd6 {[%clk 0:00:35]}  Re1 {[%clk 0:00:21]} 43. Bg2 {[%clk 0:00:35]}  d4 {[%clk 0:00:21]} 44. Kc5 {[%clk 0:00:33]}  Rc1+ {[%clk 0:00:21]} 45. Kb4 {[%clk 0:00:29]}  Rd1 {[%clk 0:00:21]} 46. Be4 {[%clk 0:00:27]}  Rd2 {[%clk 0:00:20]} 47. Kc5 {[%clk 0:00:27]}  f5 {[%clk 0:00:19]} 48. Bc6 {[%clk 0:00:22]}  Kf6 {[%clk 0:00:12]} 49. Kd6 {[%clk 0:00:20]}  Bf7 {[%clk 0:00:12]} 50. Rf8 {[%clk 0:00:20]}  Kg7 {[%clk 0:00:13]} 51. Ra8 {[%clk 0:00:20]}  d3 {[%clk 0:00:13]} 52. Ra7 {[%clk 0:00:20]}  Kf6 {[%clk 0:00:13]} 53. Ra6 {[%clk 0:00:17]}  Rf2 {[%clk 0:00:11]} 54. Ba4 {[%clk 0:00:11]}  d2 {[%clk 0:00:11]} 55. Kc5+ {[%clk 0:00:10]}  Ke5 {[%clk 0:00:11]} 56. Rd6 {[%clk 0:00:11]}  f4 {[%clk 0:00:08]} 57. Rd7 {[%clk 0:00:10]}  Be6 {[%clk 0:00:08]} 58. Rd8 {[%clk 0:00:09]}  g5 {[%clk 0:00:08]} 59. Bd1 {[%clk 0:00:09]}  g4 {[%clk 0:00:08]} 60. Re8 {[%clk 0:00:09]}  g3 {[%clk 0:00:09]} 61. Bg4 {[%clk 0:00:09]}  f3 {[%clk 0:00:06]} 62. Rxe6+ {[%clk 0:00:09]}  Kf4 {[%clk 0:00:06]} 63. Bxf3 {[%clk 0:00:07]}  Kxf3 {[%clk 0:00:07]} 64. Rf6+ {[%clk 0:00:06]}  Ke2 {[%clk 0:00:08]} 65. Rd6 {[%clk 0:00:07]}  d1=Q {[%clk 0:00:07]} 66. Rxd1 {[%clk 0:00:08]}  Kxd1 {[%clk 0:00:08]} 0-1


[Site "https://www.chess.com"]

[Event "Titled Tuesday Blitz July 13 2021"]
[White "Pajeken, Jakob Leon"]
[Black "Djordjevic, Vuk"]
[WhiteFideId "12942839"]
[BlackFideId "902098"]
[WhiteElo "2231"]
[BlackElo "2463"]
[Result "1/2-1/2"]
[Round "07"]
[TimeControl "180+1"]
[Date "2021.07.13"]
[WhiteClock "0:00:10"]
[BlackClock "0:00:04"]

1. d4 {[%clk 0:03:00]}  Nf6 {[%clk 0:02:59]} 2. Nf3 {[%clk 0:03:00]}  e6 {[%clk 0:03:00]} 3. g3 {[%clk 0:03:00]}  d5 {[%clk 0:03:00]} 4. c4 {[%clk 0:02:58]}  Be7 {[%clk 0:02:58]} 5. Bg2 {[%clk 0:02:56]}  O-O {[%clk 0:02:58]} 6. Qb3 {[%clk 0:02:54]}  c5 {[%clk 0:02:55]} 7. cxd5 {[%clk 0:02:52]}  Nxd5 {[%clk 0:02:48]} 8. dxc5 {[%clk 0:02:50]}  Bxc5 {[%clk 0:02:49]} 9. O-O {[%clk 0:02:49]}  Nc6 {[%clk 0:02:48]} 10. e4 {[%clk 0:02:47]}  Nf6 {[%clk 0:02:42]} 11. e5 {[%clk 0:02:38]}  Ng4 {[%clk 0:02:21]} 12. Qc4 {[%clk 0:02:26]}  Bxf2+ {[%clk 0:02:19]} 13. Rxf2 {[%clk 0:02:24]}  Nxf2 {[%clk 0:02:11]} 14. Kxf2 {[%clk 0:02:25]}  Bd7 {[%clk 0:02:08]} 15. Be3 {[%clk 0:02:23]}  Rc8 {[%clk 0:02:07]} 16. Qa4 {[%clk 0:02:20]}  Nxe5 {[%clk 0:02:05]} 17. Qb3 {[%clk 0:02:17]}  Ng4+ {[%clk 0:01:48]} 18. Kg1 {[%clk 0:02:12]}  Ba4 {[%clk 0:01:48]} 19. Qxa4 {[%clk 0:02:08]}  Nxe3 {[%clk 0:01:48]} 20. Nc3 {[%clk 0:02:08]}  Qd3 {[%clk 0:01:40]} 21. Bf1 {[%clk 0:02:00]}  Qf5 {[%clk 0:01:32]} 22. Nd4 {[%clk 0:01:54]}  Qc5 {[%clk 0:01:28]} 23. Nb3 {[%clk 0:01:49]}  Qe5 {[%clk 0:01:17]} 24. Qd4 {[%clk 0:01:46]}  Qxd4 {[%clk 0:01:08]} 25. Nxd4 {[%clk 0:01:47]}  Rfd8 {[%clk 0:01:08]} 26. Nf3 {[%clk 0:01:45]}  Nd5 {[%clk 0:01:06]} 27. Nxd5 {[%clk 0:01:34]}  Rxd5 {[%clk 0:01:06]} 28. Ne1 {[%clk 0:01:29]}  Rd2 {[%clk 0:01:05]} 29. b3 {[%clk 0:01:26]}  a5 {[%clk 0:00:59]} 30. a4 {[%clk 0:01:23]}  Rc3 {[%clk 0:00:53]} 31. Bc4 {[%clk 0:01:21]}  Kf8 {[%clk 0:00:53]} 32. Ng2 {[%clk 0:01:10]}  e5 {[%clk 0:00:52]} 33. Re1 {[%clk 0:01:02]}  f6 {[%clk 0:00:52]} 34. Ne3 {[%clk 0:01:01]}  g6 {[%clk 0:00:34]} 35. Nf1 {[%clk 0:00:49]}  Rd4 {[%clk 0:00:33]} 36. Kf2 {[%clk 0:00:45]}  Rc2+ {[%clk 0:00:33]} 37. Re2 {[%clk 0:00:45]}  Rxe2+ {[%clk 0:00:28]} 38. Kxe2 {[%clk 0:00:46]}  Ke7 {[%clk 0:00:27]} 39. Nd2 {[%clk 0:00:45]}  b6 {[%clk 0:00:22]} 40. Nf3 {[%clk 0:00:44]}  Rd6 {[%clk 0:00:22]} 41. g4 {[%clk 0:00:42]}  e4 {[%clk 0:00:21]} 42. Nh4 {[%clk 0:00:39]}  f5 {[%clk 0:00:13]} 43. gxf5 {[%clk 0:00:39]}  g5 {[%clk 0:00:14]} 44. Ng2 {[%clk 0:00:36]}  Kf6 {[%clk 0:00:14]} 45. Ne3 {[%clk 0:00:36]}  Ke5 {[%clk 0:00:15]} 46. Be6 {[%clk 0:00:28]}  Rd3 {[%clk 0:00:15]} 47. Ng4+ {[%clk 0:00:27]}  Kd6 {[%clk 0:00:10]} 48. Nf2 {[%clk 0:00:25]}  Rd4 {[%clk 0:00:08]} 49. Ke3 {[%clk 0:00:24]}  Rb4 {[%clk 0:00:02]} 50. Nxe4+ {[%clk 0:00:22]}  Ke5 {[%clk 0:00:03]} 51. Bc4 {[%clk 0:00:20]}  Kxf5 {[%clk 0:00:02]} 52. Nd6+ {[%clk 0:00:19]}  Kg4 {[%clk 0:00:02]} 53. Kf2 {[%clk 0:00:18]}  Kh3 {[%clk 0:00:02]} 54. Kg1 {[%clk 0:00:18]}  g4 {[%clk 0:00:02]} 55. Kh1 {[%clk 0:00:18]}  g3 {[%clk 0:00:02]} 56. hxg3 {[%clk 0:00:18]}  Kxg3 {[%clk 0:00:03]} 57. Kg1 {[%clk 0:00:18]}  Kf4 {[%clk 0:00:03]} 58. Nc8 {[%clk 0:00:17]}  Ke5 {[%clk 0:00:03]} 59. Na7 {[%clk 0:00:17]}  Kd6 {[%clk 0:00:03]} 60. Kf2 {[%clk 0:00:17]}  Rxc4 {[%clk 0:00:02]} 61. bxc4 {[%clk 0:00:17]}  Kc5 {[%clk 0:00:02]} 62. Nc8 {[%clk 0:00:12]}  Kxc4 {[%clk 0:00:01]} 63. Nxb6+ {[%clk 0:00:13]}  Kc5 {[%clk 0:00:02]} 64. Nd7+ {[%clk 0:00:11]}  Kb4 {[%clk 0:00:03]} 65. Nb6 {[%clk 0:00:11]}  Kc5 {[%clk 0:00:03]} 66. Nc8 {[%clk 0:00:10]}  Kb4 {[%clk 0:00:03]} 67. Nb6 {[%clk 0:00:10]}  Kc5 {[%clk 0:00:04]} 1/2-1/2


[Site "https://www.chess.com"]

[Event "Titled Tuesday Blitz July 13 2021"]
[White "Peralta, Eduardo"]
[Black "Bortnyk, Olexandr"]
[WhiteFideId "3700062"]
[BlackFideId "14120828"]
[WhiteElo "2205"]
[BlackElo "2723"]
[Result "0-1"]
[Round "07"]
[TimeControl "180+1"]
[Date "2021.07.13"]
[WhiteClock "0:00:03"]
[BlackClock "0:00:07"]

1. d4 {[%clk 0:03:00]}  Nf6 {[%clk 0:02:59]} 2. c4 {[%clk 0:03:00]}  d6 {[%clk 0:02:57]} 3. Nc3 {[%clk 0:03:00]}  Bf5 {[%clk 0:02:57]} 4. e4 {[%clk 0:02:47]}  Bxe4 {[%clk 0:02:28]} 5. Nxe4 {[%clk 0:02:44]}  Nxe4 {[%clk 0:02:29]} 6. Qb3 {[%clk 0:02:43]}  Qc8 {[%clk 0:02:15]} 7. Bd3 {[%clk 0:02:42]}  Nf6 {[%clk 0:02:14]} 8. Bg5 {[%clk 0:02:40]}  Nbd7 {[%clk 0:02:12]} 9. Nf3 {[%clk 0:02:38]}  e6 {[%clk 0:01:55]} 10. O-O {[%clk 0:02:37]}  Be7 {[%clk 0:01:53]} 11. Bc2 {[%clk 0:02:37]}  O-O {[%clk 0:01:48]} 12. Rfe1 {[%clk 0:02:37]}  a5 {[%clk 0:01:46]} 13. Rad1 {[%clk 0:02:36]}  a4 {[%clk 0:01:39]} 14. Qd3 {[%clk 0:02:34]}  c6 {[%clk 0:01:36]} 15. Bb1 {[%clk 0:02:27]}  Re8 {[%clk 0:01:35]} 16. Re2 {[%clk 0:02:24]}  d5 {[%clk 0:01:35]} 17. cxd5 {[%clk 0:02:17]}  cxd5 {[%clk 0:01:32]} 18. Ne5 {[%clk 0:02:17]}  Ne4 {[%clk 0:01:27]} 19. Bxe7 {[%clk 0:02:10]}  Rxe7 {[%clk 0:01:20]} 20. f3 {[%clk 0:02:10]}  Nef6 {[%clk 0:01:15]} 21. Rc2 {[%clk 0:02:10]}  Qd8 {[%clk 0:01:14]} 22. Rdc1 {[%clk 0:02:09]}  g6 {[%clk 0:01:08]} 23. Qb5 {[%clk 0:02:09]}  Nxe5 {[%clk 0:01:00]} 24. dxe5 {[%clk 0:02:07]}  Nd7 {[%clk 0:01:01]} 25. Qxb7 {[%clk 0:01:48]}  Nxe5 {[%clk 0:00:59]} 26. Qb5 {[%clk 0:01:45]}  Nc4 {[%clk 0:00:54]} 27. Rf2 {[%clk 0:01:36]}  Rc7 {[%clk 0:00:34]} 28. Re1 {[%clk 0:01:32]}  Qb8 {[%clk 0:00:32]} 29. Qxb8+ {[%clk 0:01:27]}  Rxb8 {[%clk 0:00:32]} 30. Rc1 {[%clk 0:01:24]}  Rcb7 {[%clk 0:00:31]} 31. b3 {[%clk 0:01:22]}  axb3 {[%clk 0:00:30]} 32. axb3 {[%clk 0:01:22]}  Rxb3 {[%clk 0:00:30]} 33. Ba2 {[%clk 0:01:21]}  R3b4 {[%clk 0:00:30]} 34. Bxc4 {[%clk 0:01:20]}  Rxc4 {[%clk 0:00:31]} 35. Rxc4 {[%clk 0:01:17]}  dxc4 {[%clk 0:00:32]} 36. Rc2 {[%clk 0:01:15]}  Rc8 {[%clk 0:00:32]} 37. Kf1 {[%clk 0:01:08]}  c3 {[%clk 0:00:32]} 38. Ke2 {[%clk 0:01:05]}  Kg7 {[%clk 0:00:32]} 39. Kd3 {[%clk 0:01:04]}  Kf6 {[%clk 0:00:32]} 40. g3 {[%clk 0:01:00]}  h5 {[%clk 0:00:30]} 41. Kd4 {[%clk 0:00:58]}  Kf5 {[%clk 0:00:27]} 42. Ke3 {[%clk 0:00:57]}  g5 {[%clk 0:00:26]} 43. Kd3 {[%clk 0:00:56]}  f6 {[%clk 0:00:23]} 44. Ke3 {[%clk 0:00:56]}  e5 {[%clk 0:00:22]} 45. h3 {[%clk 0:00:54]}  g4 {[%clk 0:00:22]} 46. fxg4+ {[%clk 0:00:51]}  hxg4 {[%clk 0:00:23]} 47. h4 {[%clk 0:00:52]}  Ke6 {[%clk 0:00:21]} 48. Kd3 {[%clk 0:00:46]}  f5 {[%clk 0:00:21]} 49. Ke3 {[%clk 0:00:43]}  Kf6 {[%clk 0:00:19]} 50. Kd3 {[%clk 0:00:41]}  Ke6 {[%clk 0:00:08]} 51. Ke3 {[%clk 0:00:41]}  Kd5 {[%clk 0:00:08]} 52. Kd3 {[%clk 0:00:36]}  f4 {[%clk 0:00:09]} 53. Rc1 {[%clk 0:00:33]}  c2 {[%clk 0:00:09]} 54. h5 {[%clk 0:00:32]}  fxg3 {[%clk 0:00:05]} 55. Ke2 {[%clk 0:00:32]}  Ke4 {[%clk 0:00:05]} 56. h6 {[%clk 0:00:30]}  Kf4 {[%clk 0:00:05]} 57. h7 {[%clk 0:00:29]}  Rh8 {[%clk 0:00:04]} 58. Rxc2 {[%clk 0:00:17]}  Rxh7 {[%clk 0:00:05]} 59. Rc8 {[%clk 0:00:11]}  Rh1 {[%clk 0:00:05]} 60. Rf8+ {[%clk 0:00:08]}  Ke4 {[%clk 0:00:05]} 61. Rg8 {[%clk 0:00:05]}  Kf5 {[%clk 0:00:06]} 62. Rf8+ {[%clk 0:00:04]}  Ke6 {[%clk 0:00:06]} 63. Rg8 {[%clk 0:00:02]}  g2 {[%clk 0:00:06]} 64. Rg6+ {[%clk 0:00:01]}  Kd5 {[%clk 0:00:06]} 65. Rd6+ {[%clk 0:00:01]}  Kxd6 {[%clk 0:00:06]} 66. Kd3 {[%clk 0:00:01]}  g1=Q {[%clk 0:00:06]} 67. Ke4 {[%clk 0:00:02]}  Qb1+ {[%clk 0:00:06]} 68. Ke3 {[%clk 0:00:02]}  Rh3+ {[%clk 0:00:06]} 69. Ke2 {[%clk 0:00:03]}  Qb2+ {[%clk 0:00:06]} 70. Kf1 {[%clk 0:00:03]}  Rh1# {[%clk 0:00:07]} 0-1


[Site "https://www.chess.com"]

[Event "Titled Tuesday Blitz July 13 2021"]
[White "Pert, Richard G"]
[Black "Rozhkov, Viacheslav"]
[WhiteFideId "404748"]
[BlackFideId "4181484"]
[WhiteElo "2441"]
[BlackElo "2324"]
[Result "0-1"]
[Round "07"]
[TimeControl "180+1"]
[Date "2021.07.13"]
[WhiteClock "0:00:01"]
[BlackClock "0:00:04"]

1. d4 {[%clk 0:03:00]}  d5 {[%clk 0:03:00]} 2. c4 {[%clk 0:03:00]}  dxc4 {[%clk 0:03:00]} 3. Nf3 {[%clk 0:02:59]}  Nf6 {[%clk 0:03:00]} 4. Nc3 {[%clk 0:02:56]}  a6 {[%clk 0:02:59]} 5. e4 {[%clk 0:02:55]}  b5 {[%clk 0:02:59]} 6. e5 {[%clk 0:02:54]}  Nd5 {[%clk 0:02:59]} 7. a4 {[%clk 0:02:54]}  Nxc3 {[%clk 0:02:59]} 8. bxc3 {[%clk 0:02:54]}  Qd5 {[%clk 0:02:59]} 9. Be2 {[%clk 0:02:44]}  Bb7 {[%clk 0:02:52]} 10. O-O {[%clk 0:02:41]}  c5 {[%clk 0:02:51]} 11. Nh4 {[%clk 0:02:31]}  cxd4 {[%clk 0:02:48]} 12. Bf3 {[%clk 0:02:28]}  Qd7 {[%clk 0:02:49]} 13. e6 {[%clk 0:02:22]}  fxe6 {[%clk 0:02:49]} 14. axb5 {[%clk 0:02:07]}  g6 {[%clk 0:01:55]} 15. Bxb7 {[%clk 0:02:05]}  Qxb7 {[%clk 0:01:54]} 16. Qxd4 {[%clk 0:02:05]}  Rg8 {[%clk 0:01:51]} 17. Rd1 {[%clk 0:01:20]}  Bg7 {[%clk 0:01:49]} 18. Qxc4 {[%clk 0:01:11]}  Kf7 {[%clk 0:01:12]} 19. Nf3 {[%clk 0:01:05]}  Bf6 {[%clk 0:01:10]} 20. Qf4 {[%clk 0:00:44]}  Qxb5 {[%clk 0:01:02]} 21. Be3 {[%clk 0:00:29]}  Nc6 {[%clk 0:00:52]} 22. Rab1 {[%clk 0:00:20]}  Qf5 {[%clk 0:00:50]} 23. Qh6 {[%clk 0:00:18]}  Qh5 {[%clk 0:00:33]} 24. Qf4 {[%clk 0:00:18]}  Rgd8 {[%clk 0:00:28]} 25. Rxd8 {[%clk 0:00:15]}  Rxd8 {[%clk 0:00:28]} 26. g4 {[%clk 0:00:16]}  Qd5 {[%clk 0:00:19]} 27. g5 {[%clk 0:00:15]}  e5 {[%clk 0:00:19]} 28. Qg4 {[%clk 0:00:10]}  Bg7 {[%clk 0:00:18]} 29. Nd2 {[%clk 0:00:07]}  Kg8 {[%clk 0:00:13]} 30. Rb6 {[%clk 0:00:06]}  Rf8 {[%clk 0:00:08]} 31. Ne4 {[%clk 0:00:06]}  Nd8 {[%clk 0:00:06]} 32. Rb8 {[%clk 0:00:05]}  Nf7 {[%clk 0:00:05]} 33. Rxf8+ {[%clk 0:00:04]}  Bxf8 {[%clk 0:00:05]} 34. h4 {[%clk 0:00:04]}  Qd3 {[%clk 0:00:03]} 35. h5 {[%clk 0:00:03]}  Nd6 {[%clk 0:00:03]} 36. hxg6 {[%clk 0:00:01]}  hxg6 {[%clk 0:00:04]} 37. Qe6+ {[%clk 0:00:01]}  Kh7 {[%clk 0:00:04]} 0-1


[Site "https://www.chess.com"]

[Event "Titled Tuesday Blitz July 13 2021"]
[White "Piesik, Piotr"]
[Black "Hoffmann, Asa"]
[WhiteFideId "1136194"]
[BlackFideId "2001470"]
[WhiteElo "2354"]
[BlackElo "2117"]
[Result "1/2-1/2"]
[Round "07"]
[TimeControl "180+1"]
[Date "2021.07.13"]
[WhiteClock "0:00:17"]
[BlackClock "0:00:21"]

1. Nf3 {[%clk 0:02:15]}  d6 {[%clk 0:02:59]} 2. d4 {[%clk 0:02:14]}  Bg4 {[%clk 0:02:58]} 3. e4 {[%clk 0:02:14]}  Nf6 {[%clk 0:02:57]} 4. Nbd2 {[%clk 0:02:13]}  c6 {[%clk 0:02:57]} 5. Bd3 {[%clk 0:02:12]}  Nbd7 {[%clk 0:02:56]} 6. h3 {[%clk 0:02:11]}  Bh5 {[%clk 0:02:56]} 7. c3 {[%clk 0:02:11]}  e5 {[%clk 0:02:55]} 8. Qb3 {[%clk 0:02:11]}  Qb6 {[%clk 0:02:53]} 9. O-O {[%clk 0:02:09]}  Be7 {[%clk 0:02:53]} 10. Qc2 {[%clk 0:02:05]}  O-O {[%clk 0:02:51]} 11. Nc4 {[%clk 0:02:03]}  Qc7 {[%clk 0:02:50]} 12. Nh4 {[%clk 0:02:02]}  Rfe8 {[%clk 0:02:46]} 13. dxe5 {[%clk 0:02:00]}  dxe5 {[%clk 0:02:45]} 14. Nf5 {[%clk 0:02:00]}  Bf8 {[%clk 0:02:45]} 15. f3 {[%clk 0:01:53]}  Nc5 {[%clk 0:02:41]} 16. Bg5 {[%clk 0:01:50]}  Nfd7 {[%clk 0:02:35]} 17. Rfd1 {[%clk 0:01:50]}  Nxd3 {[%clk 0:02:31]} 18. Rxd3 {[%clk 0:01:46]}  Nc5 {[%clk 0:02:30]} 19. Rd2 {[%clk 0:01:46]}  Ne6 {[%clk 0:02:28]} 20. Be3 {[%clk 0:01:45]}  Bg6 {[%clk 0:02:22]} 21. Bf2 {[%clk 0:01:35]}  Bxf5 {[%clk 0:02:14]} 22. exf5 {[%clk 0:01:35]}  Nf4 {[%clk 0:02:13]} 23. Re1 {[%clk 0:01:30]}  f6 {[%clk 0:02:11]} 24. Red1 {[%clk 0:01:29]}  Rad8 {[%clk 0:02:10]} 25. Be3 {[%clk 0:01:22]}  Nd5 {[%clk 0:02:06]} 26. Bf2 {[%clk 0:01:21]}  b5 {[%clk 0:02:01]} 27. Ne3 {[%clk 0:01:20]}  Nf4 {[%clk 0:02:00]} 28. Qe4 {[%clk 0:01:12]}  Bc5 {[%clk 0:01:56]} 29. Kh2 {[%clk 0:01:12]}  Rxd2 {[%clk 0:01:29]} 30. Rxd2 {[%clk 0:01:11]}  h5 {[%clk 0:00:41]} 31. g3 {[%clk 0:01:09]}  Bxe3 {[%clk 0:00:37]} 32. Bxe3 {[%clk 0:01:07]}  Nd5 {[%clk 0:00:36]} 33. Bc5 {[%clk 0:01:07]}  Rd8 {[%clk 0:00:32]} 34. Kg2 {[%clk 0:01:00]}  Nb6 {[%clk 0:00:30]} 35. Rxd8+ {[%clk 0:00:58]}  Qxd8 {[%clk 0:00:30]} 36. Qxc6 {[%clk 0:00:58]}  Qd2+ {[%clk 0:00:28]} 37. Bf2 {[%clk 0:00:58]}  Nc4 {[%clk 0:00:27]} 38. Qe4 {[%clk 0:00:37]}  Qxb2 {[%clk 0:00:24]} 39. g4 {[%clk 0:00:30]}  Qxc3 {[%clk 0:00:24]} 40. Qd5+ {[%clk 0:00:26]}  Kh7 {[%clk 0:00:23]} 41. Qxb5 {[%clk 0:00:25]}  Ne3+ {[%clk 0:00:22]} 42. Bxe3 {[%clk 0:00:23]}  Qxe3 {[%clk 0:00:22]} 43. Qe8 {[%clk 0:00:17]}  Qd2+ {[%clk 0:00:21]} 1/2-1/2


[Site "https://www.chess.com"]